[Event "Live Chess"]
[Site "Chess.com"]
[Date "2023.05.21"]
[Round "-"]
[White "Tilbs_12"]
[Black "Ian-Morley"]
[Result "1-0"]
[WhiteElo "1575"]
[BlackElo "1050"]
[TimeControl "300"]
[EndTime "2:58:11 PDT"]
[Termination "Tilbs_12 won by resignation"]

1. e4 {[%clk 0:04:58.1]} 1... d5 {[%clk 0:04:59]} 2. exd5 {[%clk 0:04:56.9]}
2... Qxd5 {[%clk 0:04:58]} 3. Nc3 {[%clk 0:04:56.2]} 3... Qd8 {[%clk 0:04:43.7]}
4. Bc4 {[%clk 0:04:54.4]} 4... e6 {[%clk 0:04:41.8]} 5. d3 {[%clk 0:04:45.9]}
5... Nf6 {[%clk 0:04:39.9]} 6. Bf4 {[%clk 0:04:44.1]} 6... Bb4 {[%clk
0:04:24.8]} 7. Ne2 {[%clk 0:04:41.2]} 7... Bxc3+ {[%clk 0:04:22.1]} 8. Nxc3
{[%clk 0:04:40.2]} 8... O-O {[%clk 0:04:21.5]} 9. O-O {[%clk 0:04:38.4]} 9... c6
{[%clk 0:04:20.4]} 10. a4 {[%clk 0:04:29]} 10... Nbd7 {[%clk 0:04:19.3]} 11. b4
{[%clk 0:04:27.6]} 11... b5 {[%clk 0:04:18.1]} 12. axb5 {[%clk 0:04:25.9]} 12...
cxb5 {[%clk 0:04:17.4]} 13. Nxb5 {[%clk 0:04:21.9]} 13... a6 {[%clk 0:04:14.9]}
14. Nd6 {[%clk 0:04:08.3]} 14... e5 {[%clk 0:04:05.8]} 15. Bg3 {[%clk
0:03:35.9]} 15... Nb6 {[%clk 0:04:03.1]} 16. Nxc8 {[%clk 0:03:34.3]} 16... Rxc8
{[%clk 0:04:00.7]} 17. Rxa6 {[%clk 0:03:27.2]} 17... Nxc4 {[%clk 0:03:58.2]} 18.
dxc4 {[%clk 0:03:26.2]} 18... Qxd1 {[%clk 0:03:56.4]} 19. Rxd1 {[%clk
0:03:25.3]} 19... Rxc4 {[%clk 0:03:55.2]} 20. Bxe5 {[%clk 0:03:19.5]} 20... Rxc2
{[%clk 0:03:50]} 21. Bxf6 {[%clk 0:03:08.2]} 21... gxf6 {[%clk 0:03:47.3]} 22.
Rb1 {[%clk 0:03:06.7]} 22... Rfc8 {[%clk 0:03:46.2]} 23. g3 {[%clk 0:03:02.2]}
23... Rc1+ {[%clk 0:03:45]} 24. Rxc1 {[%clk 0:03:00.6]} 24... Rxc1+ {[%clk
0:03:44.3]} 25. Kg2 {[%clk 0:03:00.1]} 25... Rb1 {[%clk 0:03:43.5]} 26. Rb6
{[%clk 0:02:54]} 26... Kf8 {[%clk 0:03:42.1]} 27. Kf3 {[%clk 0:02:53.2]} 27...
Ke7 {[%clk 0:03:40.5]} 28. Ke3 {[%clk 0:02:47.3]} 28... Kd7 {[%clk 0:03:39.8]}
29. Rxf6 {[%clk 0:02:44.6]} 29... Rxb4 {[%clk 0:03:35.8]} 30. Rxf7+ {[%clk
0:02:42.7]} 30... Ke6 {[%clk 0:03:35.2]} 31. Rxh7 {[%clk 0:02:41.5]} 31... Rb3+
{[%clk 0:03:33.8]} 32. Ke4 {[%clk 0:02:34]} 32... Rb4+ {[%clk 0:03:32.3]} 33.
Kf3 {[%clk 0:02:32.9]} 33... Kf5 {[%clk 0:03:30]} 34. h4 {[%clk 0:02:23]} 34...
Rb3+ {[%clk 0:03:24.5]} 35. Kg2 {[%clk 0:02:22.1]} 35... Kg4 {[%clk 0:03:21.3]}
36. Rg7+ {[%clk 0:02:19.6]} 36... Kh5 {[%clk 0:03:20.1]} 37. Ra7 {[%clk
0:02:17.2]} 37... Rb2 {[%clk 0:03:17.2]} 38. Ra5+ {[%clk 0:02:09.8]} 38... Kg4
{[%clk 0:03:15.4]} 39. Ra4+ {[%clk 0:02:08.9]} 39... Kh5 {[%clk 0:03:13.1]} 40.
Rf4 {[%clk 0:02:07]} 40... Rc2 {[%clk 0:03:10]} 41. Kf3 {[%clk 0:02:02]} 41...
Rc3+ {[%clk 0:03:07.6]} 42. Ke4 {[%clk 0:02:01.2]} 42... Rc4+ {[%clk 0:03:05.3]}
43. Kd3 {[%clk 0:01:57.7]} 43... Rxf4 {[%clk 0:02:59.3]} 44. gxf4 {[%clk
0:01:56.4]} 44... Kxh4 {[%clk 0:02:58.7]} 45. Ke4 {[%clk 0:01:56]} 45... Kg4
{[%clk 0:02:58]} 46. Ke5 {[%clk 0:01:54.7]} 46... Kh5 {[%clk 0:02:57.2]} 47. f5
{[%clk 0:01:51.8]} 47... Kh6 {[%clk 0:02:56.4]} 48. Ke6 {[%clk 0:01:51.1]} 48...
Kg7 {[%clk 0:02:55.7]} 49. Ke7 {[%clk 0:01:49.2]} 49... Kg8 {[%clk 0:02:54.6]}
50. f6 {[%clk 0:01:48.1]} 1-0

[Event "Live Chess"]
[Site "Chess.com"]
[Date "2023.05.21"]
[Round "-"]
[White "ranvir123"]
[Black "seasidecastle27"]
[Result "0-1"]
[WhiteElo "939"]
[BlackElo "1876"]
[TimeControl "300"]
[EndTime "2:58:16 PDT"]
[Termination "seasidecastle27 won by resignation"]

1. e4 {[%clk 0:04:57.8]} 1... d6 {[%clk 0:04:58.5]} 2. d4 {[%clk 0:04:55.5]}
2... e5 {[%clk 0:04:56.5]} 3. d5 {[%clk 0:04:54.4]} 3... f5 {[%clk 0:04:53.7]}
4. Nc3 {[%clk 0:04:52.1]} 4... Nf6 {[%clk 0:04:51.8]} 5. Bg5 {[%clk 0:04:50.3]}
5... Be7 {[%clk 0:04:49.9]} 6. Nf3 {[%clk 0:04:41.4]} 6... Nxd5 {[%clk
0:04:45.3]} 7. Bxe7 {[%clk 0:04:38.2]} 7... Nxe7 {[%clk 0:04:43.6]} 8. Bb5+
{[%clk 0:04:27.7]} 8... Bd7 {[%clk 0:04:37.2]} 9. Bxd7+ {[%clk 0:04:26.5]} 9...
Qxd7 {[%clk 0:04:35.1]} 10. O-O {[%clk 0:04:26.1]} 10... Nbc6 {[%clk 0:04:32.6]}
11. exf5 {[%clk 0:04:18.7]} 11... O-O-O {[%clk 0:04:26.1]} 12. Nh4 {[%clk
0:04:10.2]} 12... Nxf5 {[%clk 0:04:23.1]} 13. Nxf5 {[%clk 0:04:08.8]} 13... Qxf5
{[%clk 0:04:21.3]} 14. Nd5 {[%clk 0:03:59.9]} 14... Qf7 {[%clk 0:04:12.3]} 15.
Qg4+ {[%clk 0:03:56.4]} 15... Kb8 {[%clk 0:04:09.1]} 16. Qb4 {[%clk 0:03:48.8]}
16... Nxb4 {[%clk 0:04:05.6]} 0-1

[Event "Live Chess"]
[Site "Chess.com"]
[Date "2023.05.21"]
[Round "-"]
[White "Tech_Titan"]
[Black "Duke_of_Bebington"]
[Result "0-1"]
[WhiteElo "1087"]
[BlackElo "1589"]
[TimeControl "300"]
[EndTime "2:58:23 PDT"]
[Termination "Duke_of_Bebington won by checkmate"]

1. c4 {[%clk 0:04:47.8]} 1... c6 {[%clk 0:04:57.4]} 2. Nc3 {[%clk 0:04:46.9]}
2... Nf6 {[%clk 0:04:54.4]} 3. e4 {[%clk 0:04:36.1]} 3... e6 {[%clk 0:04:46.3]}
4. e5 {[%clk 0:04:33.7]} 4... Ng8 {[%clk 0:04:42]} 5. Nf3 {[%clk 0:04:31.5]}
5... d5 {[%clk 0:04:37.2]} 6. cxd5 {[%clk 0:04:29.1]} 6... exd5 {[%clk
0:04:33.8]} 7. d4 {[%clk 0:04:28.2]} 7... Be7 {[%clk 0:04:30.6]} 8. Bd3 {[%clk
0:04:20.6]} 8... f6 {[%clk 0:04:29.3]} 9. Be3 {[%clk 0:03:55.1]} 9... fxe5
{[%clk 0:04:27.3]} 10. Nxe5 {[%clk 0:03:48.8]} 10... Nf6 {[%clk 0:04:25.8]} 11.
Bg5 {[%clk 0:03:35.8]} 11... O-O {[%clk 0:04:22.2]} 12. O-O {[%clk 0:03:29.7]}
12... Bg4 {[%clk 0:04:12.1]} 13. f3 {[%clk 0:03:24.3]} 13... Bh5 {[%clk
0:04:06.9]} 14. Bxf6 {[%clk 0:03:21.4]} 14... Bxf6 {[%clk 0:04:03.7]} 15. Bc2
{[%clk 0:03:20]} 15... Nd7 {[%clk 0:04:01.5]} 16. Qd3 {[%clk 0:03:18]} 16... g6
{[%clk 0:03:44.1]} 17. g4 {[%clk 0:03:14.6]} 17... Nxe5 {[%clk 0:03:36.2]} 18.
dxe5 {[%clk 0:03:00.2]} 18... Bxe5 {[%clk 0:03:35]} 19. gxh5 {[%clk 0:02:57.2]}
19... Qg5+ {[%clk 0:03:32.6]} 20. Kh1 {[%clk 0:02:52.7]} 20... Qxh5 {[%clk
0:03:31.7]} 21. f4 {[%clk 0:02:44]} 21... Bxf4 {[%clk 0:03:26.6]} 22. Ne2 {[%clk
0:02:35.1]} 22... Qxh2# {[%clk 0:03:23.3]} 0-1

[Event "Live Chess"]
[Site "Chess.com"]
[Date "2023.05.21"]
[Round "-"]
[White "stevochess11"]
[Black "profpirate4"]
[Result "0-1"]
[WhiteElo "1716"]
[BlackElo "1310"]
[TimeControl "300"]
[EndTime "2:58:26 PDT"]
[Termination "profpirate4 won by checkmate"]

1. d4 {[%clk 0:04:57.5]} 1... f5 {[%clk 0:04:57.8]} 2. Bg5 {[%clk 0:04:55.5]}
2... Nf6 {[%clk 0:04:55.8]} 3. Nf3 {[%clk 0:04:54.2]} 3... e6 {[%clk 0:04:53.8]}
4. Nbd2 {[%clk 0:04:52.2]} 4... Be7 {[%clk 0:04:52.5]} 5. Bxf6 {[%clk
0:04:50.9]} 5... Bxf6 {[%clk 0:04:50.9]} 6. e4 {[%clk 0:04:50]} 6... fxe4 {[%clk
0:04:46.1]} 7. Nxe4 {[%clk 0:04:49.1]} 7... O-O {[%clk 0:04:43.1]} 8. Bd3 {[%clk
0:04:47.5]} 8... d5 {[%clk 0:04:37]} 9. Ng3 {[%clk 0:04:43.8]} 9... Nc6 {[%clk
0:04:32.3]} 10. c3 {[%clk 0:04:39.9]} 10... Ne7 {[%clk 0:04:26.9]} 11. O-O
{[%clk 0:04:34.7]} 11... Ng6 {[%clk 0:04:21.3]} 12. Bxg6 {[%clk 0:04:27.7]}
12... hxg6 {[%clk 0:04:20.2]} 13. Qd3 {[%clk 0:04:26]} 13... Qe8 {[%clk
0:04:17.6]} 14. Rfe1 {[%clk 0:04:08]} 14... b6 {[%clk 0:04:06.6]} 15. Ne5 {[%clk
0:04:05]} 15... Bxe5 {[%clk 0:03:54.5]} 16. Rxe5 {[%clk 0:04:02.7]} 16... Qf7
{[%clk 0:03:52.8]} 17. Rf1 {[%clk 0:03:59.6]} 17... c5 {[%clk 0:03:50.7]} 18.
Rg5 {[%clk 0:03:51.2]} 18... cxd4 {[%clk 0:03:43.5]} 19. Rxg6 {[%clk 0:03:40.8]}
19... Ba6 {[%clk 0:03:36.8]} 20. Qb1 {[%clk 0:03:23.6]} 20... Bxf1 {[%clk
0:03:32.2]} 21. Nh5 {[%clk 0:03:17.7]} 21... Qxf2+ {[%clk 0:03:11.1]} 22. Kh1
{[%clk 0:03:16.3]} 22... Bxg2+ {[%clk 0:02:51.7]} 23. Rxg2 {[%clk 0:03:11.4]}
23... Qf3 {[%clk 0:02:45.8]} 24. Kg1 {[%clk 0:02:52.1]} 24... Qxh5 {[%clk
0:02:36.2]} 25. cxd4 {[%clk 0:02:12.1]} 25... Rf5 {[%clk 0:02:30.7]} 26. Qd3
{[%clk 0:02:08.9]} 26... Raf8 {[%clk 0:02:25.4]} 27. Qg3 {[%clk 0:02:00.4]}
27... Rf1# {[%clk 0:02:22.1]} 0-1

[Event "Live Chess"]
[Site "Chess.com"]
[Date "2023.05.21"]
[Round "-"]
[White "ItsNot_Jasper"]
[Black "EdenHazard8"]
[Result "1-0"]
[WhiteElo "1365"]
[BlackElo "1964"]
[TimeControl "300"]
[EndTime "2:58:40 PDT"]
[Termination "ItsNot_Jasper won by resignation"]

1. d4 {[%clk 0:04:57.6]} 1... d5 {[%clk 0:04:59.1]} 2. c4 {[%clk 0:04:56.4]}
2... e6 {[%clk 0:04:58.3]} 3. Nf3 {[%clk 0:04:55.2]} 3... Nf6 {[%clk 0:04:57.5]}
4. Nc3 {[%clk 0:04:53.9]} 4... Be7 {[%clk 0:04:55.1]} 5. Bg5 {[%clk 0:04:52.4]}
5... h6 {[%clk 0:04:49.9]} 6. Bh4 {[%clk 0:04:51.4]} 6... O-O {[%clk 0:04:48.4]}
7. e3 {[%clk 0:04:50.3]} 7... b6 {[%clk 0:04:38.8]} 8. cxd5 {[%clk 0:04:23.7]}
8... Nxd5 {[%clk 0:04:36.8]} 9. Bxe7 {[%clk 0:04:21.7]} 9... Nxe7 {[%clk
0:04:36.7]} 10. Be2 {[%clk 0:04:16.1]} 10... Bb7 {[%clk 0:04:35.4]} 11. O-O
{[%clk 0:04:13]} 11... Nd7 {[%clk 0:04:34]} 12. Qc2 {[%clk 0:04:06.7]} 12... Nf6
{[%clk 0:04:32.8]} 13. Rfd1 {[%clk 0:04:04.3]} 13... Rc8 {[%clk 0:04:27.9]} 14.
Rac1 {[%clk 0:03:57.7]} 14... Qe8 {[%clk 0:04:26.2]} 15. a3 {[%clk 0:03:49.4]}
15... c5 {[%clk 0:04:23.9]} 16. dxc5 {[%clk 0:03:41.1]} 16... Rxc5 {[%clk
0:04:23.8]} 17. b4 {[%clk 0:03:38.4]} 17... Rc7 {[%clk 0:04:20]} 18. Qb2 {[%clk
0:03:31.4]} 18... Ned5 {[%clk 0:04:15.1]} 19. Nxd5 {[%clk 0:03:27.3]} 19... Nxd5
{[%clk 0:04:15]} 20. Rxc7 {[%clk 0:03:24.5]} 20... Nxc7 {[%clk 0:04:14.9]} 21.
a4 {[%clk 0:03:19.2]} 21... Qxa4 {[%clk 0:04:12.8]} 22. Ra1 {[%clk 0:03:18]}
22... Qc6 {[%clk 0:04:10.3]} 23. Rxa7 {[%clk 0:03:15.2]} 23... b5 {[%clk
0:04:09.1]} 24. Qe5 {[%clk 0:03:04]} 24... Nd5 {[%clk 0:04:00.4]} 25. Nd4 {[%clk
0:02:46.2]} 25... Qc1+ {[%clk 0:03:58.5]} 26. Bf1 {[%clk 0:02:44.3]} 26... Ba8
{[%clk 0:03:52.1]} 27. Nxb5 {[%clk 0:02:31.7]} 27... Nxb4 {[%clk 0:03:49]} 28.
Qd6 {[%clk 0:02:29.3]} 28... Nd5 {[%clk 0:03:33]} 29. Nc7 {[%clk 0:02:21.4]}
29... Nc3 {[%clk 0:03:29.2]} 30. Qa6 {[%clk 0:02:11.3]} 30... Bc6 {[%clk
0:03:17.8]} 31. Qc4 {[%clk 0:01:59.6]} 31... Rc8 {[%clk 0:03:02.3]} 32. Nxe6
{[%clk 0:01:55.1]} 32... Bb7 {[%clk 0:02:53.5]} 33. Qg4 {[%clk 0:01:49.8]} 33...
fxe6 {[%clk 0:02:41.8]} 34. Rxb7 {[%clk 0:01:30.7]} 1-0

[Event "Live Chess"]
[Site "Chess.com"]
[Date "2023.05.21"]
[Round "-"]
[White "WilliamofOrange16th"]
[Black "DoYouLikeCurry"]
[Result "1-0"]
[WhiteElo "1861"]
[BlackElo "1393"]
[TimeControl "300"]
[EndTime "2:58:45 PDT"]
[Termination "WilliamofOrange16th won on time"]

1. e4 {[%clk 0:04:57.8]} 1... c6 {[%clk 0:04:58.3]} 2. d4 {[%clk 0:04:56.4]}
2... d5 {[%clk 0:04:56.8]} 3. exd5 {[%clk 0:04:56.3]} 3... cxd5 {[%clk
0:04:55.8]} 4. c4 {[%clk 0:04:55.8]} 4... Nf6 {[%clk 0:04:49.5]} 5. Nf3 {[%clk
0:04:54.1]} 5... g6 {[%clk 0:04:48.2]} 6. Nc3 {[%clk 0:04:53.3]} 6... Bg4 {[%clk
0:04:46.4]} 7. h3 {[%clk 0:04:50.1]} 7... Bxf3 {[%clk 0:04:44.3]} 8. Qxf3 {[%clk
0:04:50]} 8... e6 {[%clk 0:04:43.5]} 9. c5 {[%clk 0:04:48]} 9... Nc6 {[%clk
0:04:41.5]} 10. Bg5 {[%clk 0:04:47.4]} 10... Bg7 {[%clk 0:04:40.2]} 11. Rd1
{[%clk 0:04:34.8]} 11... O-O {[%clk 0:04:37.6]} 12. Be2 {[%clk 0:04:32.6]} 12...
Rc8 {[%clk 0:04:32]} 13. O-O {[%clk 0:04:31.4]} 13... h6 {[%clk 0:03:49]} 14.
Bh4 {[%clk 0:04:29.6]} 14... g5 {[%clk 0:03:46.1]} 15. Bg3 {[%clk 0:04:28.7]}
15... Nd7 {[%clk 0:03:30.5]} 16. Nb5 {[%clk 0:04:22.9]} 16... a6 {[%clk
0:03:25.2]} 17. Nd6 {[%clk 0:04:21.8]} 17... Rb8 {[%clk 0:03:15.7]} 18. Qc3
{[%clk 0:03:47.6]} 18... Qe7 {[%clk 0:03:04]} 19. Bh5 {[%clk 0:03:40.1]} 19...
Nf6 {[%clk 0:02:57.4]} 20. Bf3 {[%clk 0:03:33]} 20... b5 {[%clk 0:02:43.1]} 21.
b4 {[%clk 0:03:29.6]} 21... Ne8 {[%clk 0:02:29.5]} 22. Rfe1 {[%clk 0:03:23]}
22... Nxd6 {[%clk 0:02:26.3]} 23. Bxd6 {[%clk 0:03:22.9]} 23... Qf6 {[%clk
0:02:20.8]} 24. Be5 {[%clk 0:03:06.6]} 24... Nxe5 {[%clk 0:02:17.4]} 25. dxe5
{[%clk 0:03:06.5]} 25... Qe7 {[%clk 0:02:13.8]} 26. a3 {[%clk 0:02:50.5]} 26...
Qc7 {[%clk 0:02:06.5]} 27. h4 {[%clk 0:02:43.5]} 27... gxh4 {[%clk 0:02:00.6]}
28. Qd4 {[%clk 0:02:39.5]} 28... Qe7 {[%clk 0:01:52.9]} 29. Rc1 {[%clk
0:02:23.8]} 29... Qg5 {[%clk 0:01:43.7]} 30. c6 {[%clk 0:02:12.5]} 30... Rbc8
{[%clk 0:01:38.5]} 31. c7 {[%clk 0:02:07.6]} 31... Qe7 {[%clk 0:01:33.4]} 32.
Qc5 {[%clk 0:02:04.3]} 32... Qxc5 {[%clk 0:01:29.3]} 33. Rxc5 {[%clk 0:02:04.2]}
33... Rfe8 {[%clk 0:01:24.7]} 34. Rc6 {[%clk 0:01:55.1]} 34... Re7 {[%clk
0:01:21.9]} 35. Rxa6 {[%clk 0:01:53.9]} 35... Rexc7 {[%clk 0:01:19.8]} 36. Ra5
{[%clk 0:01:50.4]} 36... Rc1 {[%clk 0:01:13.4]} 37. Rxc1 {[%clk 0:01:43.6]}
37... Rxc1+ {[%clk 0:01:13.3]} 38. Kh2 {[%clk 0:01:42.6]} 38... Bxe5+ {[%clk
0:01:06.3]} 39. Kh3 {[%clk 0:01:41.8]} 39... d4 {[%clk 0:00:56.1]} 40. Rxb5
{[%clk 0:01:38.3]} 40... Bf6 {[%clk 0:00:51.4]} 41. Be4 {[%clk 0:01:26.1]} 41...
d3 {[%clk 0:00:48.8]} 42. Bxd3 {[%clk 0:00:57.4]} 42... Rc3 {[%clk 0:00:47.1]}
43. Kg4 {[%clk 0:00:57.3]} 43... Rxd3 {[%clk 0:00:45.4]} 44. a4 {[%clk
0:00:56.7]} 44... Rd4+ {[%clk 0:00:43.7]} 45. Kf3 {[%clk 0:00:55.8]} 45... Rd8
{[%clk 0:00:37.3]} 46. a5 {[%clk 0:00:54.8]} 46... Bc3 {[%clk 0:00:34.9]} 47.
Rb7 {[%clk 0:00:53.5]} 47... Rd5 {[%clk 0:00:29.3]} 48. a6 {[%clk 0:00:51.3]}
48... Rd8 {[%clk 0:00:24.7]} 49. a7 {[%clk 0:00:49]} 49... Kg7 {[%clk
0:00:19.3]} 50. Rb8 {[%clk 0:00:47.5]} 50... Rd3+ {[%clk 0:00:17.1]} 51. Ke2
{[%clk 0:00:42.8]} 51... Rd2+ {[%clk 0:00:12]} 52. Ke3 {[%clk 0:00:41.7]} 52...
Ra2 {[%clk 0:00:09]} 53. a8=Q {[%clk 0:00:38.2]} 53... Rxa8 {[%clk 0:00:08.4]}
54. Rxa8 {[%clk 0:00:37.1]} 54... Bxb4 {[%clk 0:00:08.1]} 55. Ra4 {[%clk
0:00:32.4]} 55... Be7 {[%clk 0:00:07.7]} 56. Rg4+ {[%clk 0:00:30.9]} 56... Bg5+
{[%clk 0:00:07]} 57. Ke4 {[%clk 0:00:29.7]} 57... Kg6 {[%clk 0:00:06.5]} 58. Kd3
{[%clk 0:00:26.9]} 58... f5 {[%clk 0:00:05.9]} 59. Ra4 {[%clk 0:00:25.7]} 59...
e5 {[%clk 0:00:05.1]} 60. Ra5 {[%clk 0:00:22.9]} 60... Kh5 {[%clk 0:00:04.5]}
61. Rxe5 {[%clk 0:00:21.1]} 61... Kg4 {[%clk 0:00:03.3]} 62. Re8 {[%clk
0:00:18.7]} 62... f4 {[%clk 0:00:03.2]} 63. Rg8 {[%clk 0:00:16]} 63... h3 {[%clk
0:00:02.7]} 64. gxh3+ {[%clk 0:00:14.3]} 64... Kxh3 {[%clk 0:00:02.1]} 65. Ke2
{[%clk 0:00:14.2]} 65... Kg2 {[%clk 0:00:00.9]} 66. f3 {[%clk 0:00:13.4]} 1-0

[Event "Live Chess"]
[Site "Chess.com"]
[Date "2023.05.21"]
[Round "-"]
[White "worldchessleaguelive"]
[Black "JoshMcK"]
[Result "1-0"]
[WhiteElo "1376"]
[BlackElo "1508"]
[TimeControl "300"]
[EndTime "2:59:21 PDT"]
[Termination "worldchessleaguelive won by resignation"]

1. d4 {[%clk 0:04:57.9]} 1... d5 {[%clk 0:04:57.8]} 2. Bf4 {[%clk 0:04:55.9]}
2... Nf6 {[%clk 0:04:56.1]} 3. Nf3 {[%clk 0:04:54.5]} 3... e6 {[%clk 0:04:49.8]}
4. e3 {[%clk 0:04:47.5]} 4... Bd6 {[%clk 0:04:46.9]} 5. Nbd2 {[%clk 0:04:45.1]}
5... O-O {[%clk 0:04:44.5]} 6. g3 {[%clk 0:04:41.9]} 6... c5 {[%clk 0:04:37.8]}
7. c3 {[%clk 0:04:38.3]} 7... cxd4 {[%clk 0:04:36.4]} 8. cxd4 {[%clk 0:04:36.5]}
8... Bxf4 {[%clk 0:04:35.5]} 9. exf4 {[%clk 0:04:33.9]} 9... Nc6 {[%clk
0:04:33.7]} 10. Bg2 {[%clk 0:04:30.8]} 10... Qb6 {[%clk 0:04:30.9]} 11. Nb3
{[%clk 0:04:16.8]} 11... Qb4+ {[%clk 0:04:16.6]} 12. Qd2 {[%clk 0:04:13.9]}
12... Qxd2+ {[%clk 0:04:10.6]} 13. Nfxd2 {[%clk 0:04:11.5]} 13... a5 {[%clk
0:04:06.9]} 14. a4 {[%clk 0:03:57.7]} 14... Bd7 {[%clk 0:04:04]} 15. O-O {[%clk
0:03:54.5]} 15... Nb4 {[%clk 0:04:01.9]} 16. Nc5 {[%clk 0:03:48.3]} 16... Bc6
{[%clk 0:03:57.1]} 17. Rfc1 {[%clk 0:03:31.2]} 17... Rac8 {[%clk 0:03:44.7]} 18.
Bf1 {[%clk 0:03:26.5]} 18... Ne4 {[%clk 0:03:29.2]} 19. Ndxe4 {[%clk 0:03:13.5]}
19... dxe4 {[%clk 0:03:29.1]} 20. Bg2 {[%clk 0:02:57.5]} 20... f5 {[%clk
0:03:02.9]} 21. Nxe6 {[%clk 0:02:53.7]} 21... Rfe8 {[%clk 0:02:58.7]} 22. Nc5
{[%clk 0:02:50.1]} 22... Rcd8 {[%clk 0:02:38.9]} 23. Rd1 {[%clk 0:02:36.9]}
23... Nc2 {[%clk 0:02:36.5]} 24. Rac1 {[%clk 0:02:29.6]} 24... Nxd4 {[%clk
0:02:32.3]} 25. Bf1 {[%clk 0:02:21.6]} 25... Nf3+ {[%clk 0:02:26.8]} 26. Kg2
{[%clk 0:02:20.1]} 26... e3 {[%clk 0:02:14.9]} 27. Bc4+ {[%clk 0:02:14.4]} 27...
Kh8 {[%clk 0:02:11.6]} 28. Rxd8 {[%clk 0:02:09.1]} 28... Rxd8 {[%clk 0:02:11.4]}
29. fxe3 {[%clk 0:02:01.8]} 29... Rd2+ {[%clk 0:01:54.6]} 30. Kf1 {[%clk
0:01:54.8]} 30... Nxh2+ {[%clk 0:01:48.4]} 31. Ke1 {[%clk 0:01:50.8]} 31... Nf3+
{[%clk 0:01:45.1]} 32. Kf1 {[%clk 0:01:46.3]} 32... Rxb2 {[%clk 0:01:33.9]} 33.
Nd3 {[%clk 0:01:31.3]} 33... Nh2+ {[%clk 0:01:26.8]} 34. Kg1 {[%clk 0:01:25.3]}
34... Rg2+ {[%clk 0:01:25.3]} 35. Kh1 {[%clk 0:01:19.9]} 35... Rc2+ {[%clk
0:01:20.4]} 36. Kg1 {[%clk 0:01:17.6]} 36... Rg2+ {[%clk 0:01:19.3]} 37. Kh1
{[%clk 0:01:16.3]} 37... Nf3 {[%clk 0:01:14.1]} 38. Kxg2 {[%clk 0:01:12.5]}
38... Ne5+ {[%clk 0:01:11.9]} 39. Kf2 {[%clk 0:01:07]} 39... Ng4+ {[%clk
0:01:10.6]} 40. Ke2 {[%clk 0:01:05]} 1-0

[Event "Live Chess"]
[Site "Chess.com"]
[Date "2023.05.21"]
[Round "-"]
[White "apl_trainer"]
[Black "RedRook90"]
[Result "1-0"]
[WhiteElo "1768"]
[BlackElo "1950"]
[TimeControl "300"]
[EndTime "2:59:28 PDT"]
[Termination "apl_trainer won by resignation"]

1. d4 {[%clk 0:04:58.2]} 1... d5 {[%clk 0:04:59]} 2. c4 {[%clk 0:04:57.1]} 2...
e6 {[%clk 0:04:57.8]} 3. Nc3 {[%clk 0:04:56]} 3... Nf6 {[%clk 0:04:56.9]} 4. Nf3
{[%clk 0:04:54.1]} 4... Be7 {[%clk 0:04:56.4]} 5. Bf4 {[%clk 0:04:52.6]} 5... c6
{[%clk 0:04:55.1]} 6. e3 {[%clk 0:04:50.3]} 6... O-O {[%clk 0:04:54.2]} 7. Bd3
{[%clk 0:04:43.8]} 7... Nbd7 {[%clk 0:04:52.4]} 8. c5 {[%clk 0:04:41.5]} 8... b6
{[%clk 0:04:50.5]} 9. b4 {[%clk 0:04:40.2]} 9... a5 {[%clk 0:04:49]} 10. a3
{[%clk 0:04:39.2]} 10... Ba6 {[%clk 0:04:42.4]} 11. b5 {[%clk 0:04:34.5]} 11...
cxb5 {[%clk 0:04:38]} 12. c6 {[%clk 0:04:32.7]} 12... Nb8 {[%clk 0:04:33.6]} 13.
c7 {[%clk 0:04:31.2]} 13... Qd7 {[%clk 0:04:31.9]} 14. cxb8=Q {[%clk 0:04:27.9]}
14... Raxb8 {[%clk 0:04:31.4]} 15. Bxb8 {[%clk 0:04:26.3]} 15... Rxb8 {[%clk
0:04:31.3]} 16. O-O {[%clk 0:04:23.7]} 16... b4 {[%clk 0:04:30.3]} 17. Bxa6
{[%clk 0:04:21.8]} 17... bxc3 {[%clk 0:04:28.9]} 18. Ne5 {[%clk 0:04:17.7]}
18... Qc7 {[%clk 0:04:27.2]} 19. Qd3 {[%clk 0:04:10.6]} 19... Ne4 {[%clk
0:04:22.5]} 20. Rfc1 {[%clk 0:04:06.7]} 20... f6 {[%clk 0:04:13.9]} 21. f3
{[%clk 0:03:53.4]} 1-0

[Event "Live Chess"]
[Site "Chess.com"]
[Date "2023.05.21"]
[Round "-"]
[White "Reggie016"]
[Black "yeetpizza74"]
[Result "1-0"]
[WhiteElo "1137"]
[BlackElo "495"]
[TimeControl "300"]
[EndTime "2:59:31 PDT"]
[Termination "Reggie016 won by checkmate"]

1. e4 {[%clk 0:04:59.1]} 1... c6 {[%clk 0:04:58.6]} 2. d4 {[%clk 0:04:58.3]}
2... d5 {[%clk 0:04:57.5]} 3. Nc3 {[%clk 0:04:57.9]} 3... e6 {[%clk 0:04:50.4]}
4. exd5 {[%clk 0:04:57.2]} 4... cxd5 {[%clk 0:04:48.6]} 5. Nf3 {[%clk
0:04:57.1]} 5... Bb4 {[%clk 0:04:46.8]} 6. Bb5+ {[%clk 0:04:56.2]} 6... Bd7
{[%clk 0:04:44.2]} 7. Bd2 {[%clk 0:04:55.8]} 7... Bxc3 {[%clk 0:04:39.7]} 8.
Bxd7+ {[%clk 0:04:53.7]} 8... Qxd7 {[%clk 0:04:36.3]} 9. Bxc3 {[%clk 0:04:53.3]}
9... Nf6 {[%clk 0:04:31.5]} 10. Ne5 {[%clk 0:04:52.6]} 10... Qd6 {[%clk
0:04:26.8]} 11. O-O {[%clk 0:04:51.3]} 11... O-O {[%clk 0:04:25]} 12. a3 {[%clk
0:04:48.2]} 12... Nc6 {[%clk 0:04:14.9]} 13. Nxc6 {[%clk 0:04:43.8]} 13... bxc6
{[%clk 0:04:13.4]} 14. Bb4 {[%clk 0:04:43]} 14... Qc7 {[%clk 0:04:01]} 15. Bxf8
{[%clk 0:04:42.1]} 15... Ng4 {[%clk 0:03:58.2]} 16. Qxg4 {[%clk 0:04:39]} 16...
Rxf8 {[%clk 0:03:55.4]} 17. b3 {[%clk 0:04:35.4]} 17... c5 {[%clk 0:03:53.5]}
18. c4 {[%clk 0:04:34.4]} 18... dxc4 {[%clk 0:03:47.7]} 19. bxc4 {[%clk
0:04:34.3]} 19... cxd4 {[%clk 0:03:46.4]} 20. Qxd4 {[%clk 0:04:33.9]} 20... Rd8
{[%clk 0:03:40.8]} 21. Qe3 {[%clk 0:04:31.6]} 21... Qxc4 {[%clk 0:03:36.4]} 22.
Rac1 {[%clk 0:04:27.5]} 22... Qd5 {[%clk 0:03:27.2]} 23. Qxa7 {[%clk 0:04:24.4]}
23... Ra8 {[%clk 0:03:22]} 24. Qc5 {[%clk 0:04:17.1]} 24... Qb3 {[%clk
0:03:16.7]} 25. Qc8+ {[%clk 0:04:14]} 25... Rxc8 {[%clk 0:03:14.6]} 26. Rxc8#
{[%clk 0:04:13.9]} 1-0